fUSD/lending_fUSD_20250211
["ID","MTS","AMOUNT","RATE_DAILY","PERIOD"]
[352681152,1739238636263,-500.0,0.00010958,2]
[352681153,1739238636272,-1307.43,0.00010958,2]
[352681154,1739238636281,-507.0761808,0.00010958,2]
[352681155,1739238636290,-500.0,0.00010958,2]
[352681156,1739238636298,-505.0887034,0.00010958,2]
[352681157,1739238636307,-505.78446703,0.00010958,2]
[352681158,1739238636316,-500.0,0.00010958,2]
[352681159,1739238636325,-671.12,0.00010958,2]
[352681160,1739238636334,-507.77441639,0.00010958,2]
[352681161,1739238636343,-538.53,0.00010958,2]
[352681162,1739238636354,-734.15,0.00010958,2]
[352681163,1739238636363,-505.27167478,0.00010958,2]
[352681164,1739238636372,-1145.16,0.00010958,2]
[352681165,1739238636381,-556.9,0.00010958,2]
[352681166,1739238636390,-500.0,0.00010958,2]
[352681167,1739238636399,-965.7,0.00010958,2]
[352681168,1739238636408,-500.84702394,0.00010958,2]
[352681169,1739238636418,-505.54702256,0.00010958,2]
[352681170,1739238636427,-500.0,0.00010958,2]
[352681171,1739238636436,-881.55,0.00010958,2]
[352681172,1739238636445,-517.41,0.00010958,2]
[352681173,1739238636454,-503.43411156,0.00010958,2]
[352681174,1739238636463,-1220.22,0.00010958,2]
[352681175,1739238636472,-1474.82,0.00010958,2]
[352681176,1739238636481,-503.72712974,0.00010958,2]
[352681177,1739238636491,-856.38,0.00010958,2]
[352681178,1739238636500,-795.44,0.00010958,2]
[352681179,1739238636509,-500.0,0.00010958,2]
[352681180,1739238636518,-500.0,0.00010958,2]
[352681181,1739238636527,-734.66,0.00010958,2]
[352681182,1739238636536,-500.0,0.00010958,2]
[352681183,1739238636545,-506.14768391,0.00010958,2]
[352681184,1739238636554,-4817.94,0.00010958,2]
[352681185,1739238636563,-1178.14,0.00010958,2]
[352681186,1739238636572,-500.0,0.00010958,2]
[352681187,1739238636580,-500.0,0.00010958,2]
[352681188,1739238636589,-1475.04,0.00010958,2]
[352681189,1739238636599,-501.75110878,0.00010958,2]
[352681190,1739238636608,-500.0,0.00010958,2]
[352681191,1739238636617,-504.3828363,0.00010958,2]
[352681192,1739238636626,-948.36,0.00010958,2]
[352681193,1739238636636,-878.77,0.00010958,2]
[352681194,1739238636645,-506.2503929,0.00010958,2]
[352681195,1739238636655,-500.0,0.00010958,2]
[352681196,1739238636663,-559.96,0.00010958,2]
[352681197,1739238636673,-1418.63,0.00010958,2]
[352681198,1739238636682,-500.0,0.00010958,2]
[352681199,1739238636691,-500.0,0.00010958,2]
[352681200,1739238636700,-1396.78,0.00010958,2]
[352681201,1739238636709,-507.34948937,0.00010958,2]
[352681202,1739238636719,-705.42,0.00010958,2]
[352681203,1739238636728,-683.63,0.00010958,2]
[352681204,1739238636738,-1792.1,0.00010958,2]
[352681205,1739238636749,-504.19324782,0.00010958,2]
[352681206,1739238636758,-531.65,0.00010958,2]
[352681207,1739238636768,-510.50183826,0.00010958,2]
[352681208,1739238636777,-1500.92,0.00010958,2]
[352681209,1739238636786,-500.0,0.00010958,2]
[352681210,1739238636795,-547.12,0.00010958,2]
[352681211,1739238636804,-504.02943377,0.00010958,2]
[352681212,1739238636814,-500.0,0.00010958,2]
[352681213,1739238636823,-500.0,0.00010958,2]
[352681214,1739238636833,-506.57191043,0.00010958,2]
[352681215,1739238636842,-536.98,0.00010958,2]
[352681216,1739238636851,-1268.11,0.00010958,2]
[352681217,1739238636860,-1019.83,0.00010958,2]
[352681218,1739238636869,-500.0,0.00010958,2]
[352681219,1739238636878,-500.0,0.00010958,2]
[352681220,1739238636887,-500.0,0.00010958,2]
[352681221,1739238636896,-621.2622191,0.00010958,2]
[352681222,1739238636906,-1139.04,0.00010958,2]
[352681223,1739238636915,-500.0,0.00010958,2]
[352681224,1739238636924,-505.949143,0.00010958,2]
[352681225,1739238636934,-1544.84,0.00010958,2]
[352681226,1739238636943,-705.2,0.00010958,2]
[352681227,1739238636952,-1018.28,0.00010958,2]
[352681228,1739238636962,-1178.37,0.00010958,2]
[352681229,1739238636972,-508.6204836,0.00010958,2]
[352681230,1739238636982,-2378.3,0.00010958,2]
[352681231,1739238636991,-896.16,0.00010958,2]
[352681232,1739238637000,-675.93,0.00010958,2]
[352681233,1739238637010,-973.36,0.00010958,2]
[352681234,1739238637020,-3179.2,0.00010958,2]
[352681235,1739238637030,-1341.84,0.00010958,2]
[352681236,1739238637040,-505.94771215,0.00010958,2]
[352681237,1739238637049,-504.81342044,0.00010958,2]
[352681238,1739238637059,-776.53,0.00010958,2]
[352681239,1739238637068,-505.73127959,0.00010958,2]
[352681240,1739238637077,-500.0,0.00010958,2]
[352681241,1739238637087,-6534.89,0.00010958,2]
[352681242,1739238637096,-500.0,0.00010958,2]
[352681243,1739238637110,-500.0,0.00010958,2]
[352681244,1739238637121,-795.15,0.00010958,2]
[352681245,1739238637130,-4344.54,0.00010958,2]
[352681246,1739238637139,-1799.6,0.00010958,2]
[352681247,1739238637148,-500.0,0.00010958,2]
[352681248,1739238637158,-916.29,0.00010958,2]
[352681249,1739238637167,-1637.11,0.00010958,2]
[352681250,1739238637176,-706.92,0.00010958,2]
[352681251,1739238637185,-599.67,0.00010958,2]
[352681252,1739238637195,-505.1547871,0.00010958,2]
[352681253,1739238637204,-500.0,0.00010958,2]
[352681254,1739238637214,-504.77498582,0.00010958,2]
[352681255,1739238637223,-1155.26,0.00010958,2]
[352681256,1739238637232,-500.0,0.00010958,2]
[352681257,1739238637241,-508.52187741,0.00010958,2]
[352681258,1739238637250,-500.0,0.00010958,2]
[352681259,1739238637260,-511.50850687,0.00010958,2]
[352681260,1739238637270,-500.0,0.00010958,2]
[352681261,1739238637279,-749.96,0.00010958,2]
[352681262,1739238637288,-1143.23,0.00010958,2]
[352681263,1739238637298,-1064.2,0.00010958,2]
[352681264,1739238637307,-2096.43,0.00010958,2]
[352681265,1739238637317,-1335.72,0.00010958,2]
[352681266,1739238637326,-505.20171529,0.00010958,2]
[352681267,1739238637335,-1214.88,0.00010958,2]
[352681268,1739238637346,-505.10400806,0.00010958,2]
[352681269,1739238637358,-508.47162428,0.00010958,2]
[352681270,1739238637367,-813.97,0.00010958,2]
[352681271,1739238637379,-923.78,0.00010958,2]
[352681272,1739238637388,-629.20757338,0.00010958,2]
[352681273,1739238637398,-1259.05,0.00010958,2]
[352681274,1739238637407,-504.17596312,0.00010958,2]
[352681275,1739238637608,-500.0,0.00010958,2]
[352681276,1739238637619,-972.15,0.00010958,2]
[352681277,1739238637629,-505.49339508,0.00010958,2]
[352681278,1739238637639,-2452.61,0.00010958,2]
[352681279,1739238637649,-503.80200168,0.00010958,2]
[352681280,1739238637659,-500.0,0.00010958,2]
[352681281,1739238637669,-504.03774307,0.00010958,2]
[352681282,1739238637680,-500.0,0.00010958,2]
[352681283,1739238637689,-1609.04,0.00010958,2]
[352681284,1739238637699,-503.86887113,0.00010958,2]
[352681285,1739238637708,-1838.19,0.00010958,2]
[352681286,1739238637718,-504.25907545,0.00010958,2]
[352681287,1739238637727,-502.1192909,0.00010958,2]
[352681288,1739238637739,-504.11551354,0.00010958,2]
[352681289,1739238637751,-501.28158286,0.00010958,2]
[352681290,1739238637760,-503.33671027,0.00010958,2]
[352681291,1739238637769,-1395.43,0.00010958,2]
[352681292,1739238637779,-504.37664241,0.00010958,2]
[352681293,1739238637789,-506.81133487,0.00010958,2]
[352681294,1739238637798,-500.0,0.00010958,2]
[352681295,1739238637807,-502.49334898,0.00010958,2]
[352681297,1739238637818,-500.0,0.00010958,2]
[352681298,1739238637829,-1415.59,0.00010958,2]
[352681299,1739238637838,-739.96,0.00010958,2]
[352681300,1739238637847,-500.0,0.00010958,2]
[352681301,1739238637859,-506.18195854,0.00010958,2]
[352681302,1739238637868,-625.23,0.00010958,2]
[352681303,1739238637878,-500.0,0.00010958,2]
[352681304,1739238637887,-287.02328936,0.00010958,2]
[352681305,1739238637896,-1219.38,0.00010958,2]
[352681308,1739238637910,-1993.4,0.00010958,2]
[352681310,1739238637920,-1195.66,0.00010958,2]
[352681312,1739238637930,-617.91,0.00010958,2]
[352681313,1739238637940,-765.64,0.00010958,2]
[352681314,1739238637950,-500.0,0.00010958,2]
[352681315,1739238637960,-2338.7,0.00010958,2]
[352681316,1739238637970,-507.4079518,0.00010958,2]
[352681317,1739238637980,-510.02417345,0.00010958,2]
[352681318,1739238637989,-911.69,0.00010958,2]
[352681319,1739238637999,-1979.23,0.00010958,2]
[352681320,1739238638009,-503.63993342,0.00010958,2]
[352681321,1739238638018,-504.44940467,0.00010958,2]
[352681322,1739238638028,-1366.71,0.00010958,2]
[352681323,1739238638038,-542.03,0.00010958,2]
[352681324,1739238638047,-508.72921085,0.00010958,2]
[352681325,1739238638057,-558.45,0.00010958,2]
[352681326,1739238638066,-2994.1,0.00010958,2]
[352681327,1739238638076,-503.2063052,0.00010958,2]
[352681328,1739238638086,-501.07894599,0.00010958,2]
[352681329,1739238638095,-500.0,0.00010958,2]
[352681330,1739238638107,-1185.93,0.00010958,2]
[352681331,1739238638117,-500.0,0.00010958,2]
[352681332,1739238638126,-1405.53,0.00010958,2]
[352681333,1739238638136,-890.71,0.00010958,2]
[352681334,1739238638145,-3209.61,0.00010958,2]
[352681335,1739238638154,-505.38772108,0.00010958,2]
[352681336,1739238638164,-500.0,0.00010958,2]
[352681337,1739238638174,-507.30197565,0.00010958,2]
[352681338,1739238638183,-500.63893555,0.00010958,2]
[352681339,1739238638193,-1324.47,0.00010958,2]
[352681340,1739238638202,-1068.62,0.00010958,2]
[352681341,1739238638212,-675.7,0.00010958,2]
[352681342,1739238638221,-328.99862174,0.00010958,2]
[352681343,1739238638231,-536.43,0.00010958,2]
[352681344,1739238638240,-1802.01,0.00010958,2]
[352681345,1739238638250,-500.0,0.00010958,2]
[352681346,1739238638260,-505.21819575,0.00010958,2]
[352681347,1739238638270,-1473.32,0.00010958,2]
[352681348,1739238638279,-2446.9,0.00010958,2]
[352681349,1739238638289,-1072.69,0.00010958,2]
[352681350,1739238638299,-1693.02,0.00010958,2]
[352681351,1739238638308,-581.5,0.00010958,2]
[352681352,1739238638318,-503.53814889,0.00010958,2]
[352681353,1739238638327,-516.99,0.00010958,2]
[352681354,1739238638336,-502.60470836,0.00010958,2]
[352681355,1739238638346,-1619.75,0.00010958,2]
[352681356,1739238638356,-500.0,0.00010958,2]
[352681357,1739238638366,-500.0,0.00010958,2]
[352681358,1739238638375,-2760.47,0.00010958,2]
[352681359,1739238638385,-503.49190673,0.00010958,2]
[352681360,1739238638394,-1053.3,0.00010958,2]
[352681361,1739238638404,-500.0,0.00010958,2]
[352681362,1739238638413,-1010.89,0.00010958,2]
[352681363,1739238638422,-500.0,0.00010958,2]
[352681364,1739238638432,-848.20222008,0.00010958,2]
[352681387,1739238638755,-12.21777992,0.00010958,2]
[352681389,1739238638764,-503.22280634,0.00010958,2]
[352681391,1739238638773,-500.0,0.00010958,2]
[352681393,1739238638783,-996.43,0.00010958,2]
[352681395,1739238638792,-500.0,0.00010958,2]
[352681397,1739238638801,-1097.71,0.00010958,2]
[352681399,1739238638810,-506.03423106,0.00010958,2]
[352681401,1739238638821,-1123.75,0.00010958,2]
[352681403,1739238638830,-506.52009901,0.00010958,2]
[352681405,1739238638840,-2643.17,0.00010958,2]
[352681407,1739238638849,-750.63,0.00010958,2]
[352681409,1739238638858,-505.41200359,0.00010958,2]
[352681411,1739238638868,-507.36900268,0.00010958,2]
[352681413,1739238638877,-1029.86,0.00010958,2]
[352681415,1739238638886,-500.85707443,0.00010958,2]
[352681416,1739238638896,-1255.01,0.00010958,2]
[352681417,1739238638905,-500.0,0.00010958,2]
[352681418,1739238638915,-507.87904785,0.00010958,2]
[352681419,1739238638924,-1578.03,0.00010958,2]
[352681420,1739238638934,-500.0,0.00010958,2]
[352681421,1739238638943,-1624.63,0.00010958,2]
[352681422,1739238638952,-1000.14,0.00010958,2]
[352681423,1739238638965,-510.62696184,0.00010958,2]
[352681424,1739238638974,-891.44,0.00010958,2]
[352681425,1739238638985,-1224.1,0.00010958,2]
[352681426,1739238638994,-500.0,0.00010958,2]
[352681427,1739238639006,-878.73,0.00010958,2]
[352681428,1739238639015,-1347.75,0.00010958,2]
[352681429,1739238639025,-1045.34,0.00010958,2]
[352681430,1739238639035,-506.77238597,0.00010958,2]
[352681431,1739238639044,-9446.36860731,0.00010958,2]
[352681432,1739238639056,-75617.05724856,0.00010958,2]
[352681433,1739238639066,-150.0,0.00010959,2]
[352681434,1739238639076,-151.0,0.00010959,2]
[352681435,1739238639085,-151.0,0.00010959,2]
[352681436,1739238639094,-151.0,0.00010959,2]
[352681437,1739238639105,-637.87425573,0.00010966,2]
[352681438,1739238639114,-156.11,0.00010977,2]
[352681439,1739238639124,-1805.724,0.00010978,2]
[352681440,1739238639133,-165.473,0.00010978,2]
[352681441,1739238639143,-150.0,0.00010978,2]
[352681442,1739238639152,-150.0,0.00010981,2]
[352681443,1739238639162,-637.87425573,0.00010988,2]
[352681444,1739238639171,-348.71144569,0.00010989,2]
[352681445,1739238639181,-1279.8005762,0.00010989,2]
[352681446,1739238639190,-5107.0162093,0.00010989,2]
[352681447,1739238639199,-1297.6258153,0.00010989,2]
[352681448,1739238639209,-278.7194331,0.00010989,2]
[352681449,1739238639218,-150.14085954,0.0001099,2]
[352681450,1739238639228,-150.4109351,0.00010991,2]
[352681451,1739238639238,-2345.000001,0.00010997,6]
[352681452,1739238639247,-514.41,0.00010999,2]
[352681453,1739238639257,-506.50096026,0.00010999,2]
[352681454,1739238639266,-500.0,0.00010999,2]
[352681455,1739238639276,-691.8024532,0.00010999,2]
[352681456,1739238639285,-300.0,0.00010999,2]
[352681457,1739238639295,-300.0,0.00010999,2]
[352681458,1739238639305,-300.0,0.00010999,2]
[352681459,1739238639314,-300.0,0.00010999,2]
[352681460,1739238639324,-1221.0,0.00011,2]
[352681461,1739238639334,-2333.36270094,0.00011,2]
[352681462,1739238639343,-5152.38585035,0.00011,2]
[352681463,1739238639357,-407.92880728,0.00011,2]
[352681464,1739238639500,-27945.53707492,0.00011,2]
[352681511,1739238643409,-318.15817066,0.00010858,2]
[352681513,1739238643420,-90.57813316,0.00010958,2]
[352681514,1739238643431,-426.62000328,0.00010958,2]
[352681515,1739238643441,-101.97888859,0.00010958,2]
[352681516,1739238643453,-399.59496902,0.00010958,2]
[352681517,1739238643462,-500.0,0.00010958,2]
[352681518,1739238643471,-918.32503098,0.00010958,2]
[352681520,1739238646230,-115.15496902,0.00010958,2]
[352681521,1739238646240,-500.0,0.00010958,2]
[352681522,1739238646250,-184.95846097,0.00010958,2]
[352681523,1739238646262,-315.04153903,0.00010958,2]
[352681524,1739238646271,-1119.85,0.00010958,2]
[352681525,1739238646281,-1203.74,0.00010958,2]
[352681526,1739238646290,-718.31,0.00010958,2]
[352681527,1739238646300,-1104.0,0.00011,2]
[352681528,1739238646310,-2947.69953952,0.00011,2]
[352681529,1739238646322,-1356236.115331,0.00011,2]
[352681530,1739238646334,-24703.38132784,0.00011,2]
[352681531,1739238646359,-35422.3977304,0.00011,2]
[352681532,1739238646371,-5043.485243,0.00011,2]
[352681533,1739238646383,-811.941686,0.00011,2]
[352681534,1739238646402,-4084.00557877,0.00011,2]
[352681535,1739238646413,-1336.26174457,0.00011,2]
[352681547,1739239352462,164.021111,0.0002,120]
[352681548,1739239741108,-575.31,8.219e-05,2]
[352681577,1739239832395,-150.0,8.972e-05,2]
[352681578,1739239832405,-300.0,8.972e-05,2]
[352681579,1739239832415,-150.0,8.972e-05,2]
[352681580,1739239832424,-787.1710257,8.973e-05,2]
[352681581,1739239832470,-1959.9999998,8.973e-05,2]
[352681582,1739239832483,-2252.8289745,8.973e-05,2]
[352681583,1739239832492,-26158.7125,8.973e-05,2]
[352681584,1739239832502,-783.96244476,8.973e-05,2]
[352681585,1739239832511,-867.69478172,8.973e-05,2]
[352681586,1739239832520,-150.0,9.093e-05,2]
[352681587,1739239832529,-225.37,9.543e-05,2]
[352681588,1739239832538,-285.85,9.575e-05,2]
[352681589,1739239832547,-154.35,9.724e-05,2]
[352681590,1739239832557,-154.35,9.731e-05,2]
[352681591,1739239832566,-154.35,9.738e-05,2]
[352681592,1739239832576,-154.35,9.745e-05,2]
[352681593,1739239832586,-154.35,9.752e-05,2]
[352681594,1739239832596,-154.35,9.759e-05,2]
[352681595,1739239832606,-154.35,9.766e-05,2]
[352681596,1739239832615,-154.35,9.773e-05,2]
[352681597,1739239832625,-255.0,9.869e-05,2]
[352681598,1739239832635,-420.0,9.869e-05,2]
[352681599,1739239832644,-150.0,9.869e-05,2]
[352681600,1739239832653,-182.0,0.00010079,2]
[352681601,1739239832919,-250.0,0.00010121,2]
[352681602,1739239832929,-153.0,0.00010137,2]
[352681603,1739239832939,-251.08,0.00010137,2]
[352681604,1739239832948,-504.16,0.00010141,2]
[352681605,1739239832958,-1000.0,0.00010158,2]
[352681606,1739239832967,-1632.27,0.00010341,2]
[352681607,1739239832977,-439.79,0.00010341,2]
[352681608,1739239832986,-575.31,0.00010454,2]
[352681609,1739239832997,-30000.0,0.00010606,2]
[352681611,1739239833007,-151.23,0.00010621,2]
[352681613,1739239833017,-985.61,0.00010672,2]
[352681614,1739239833027,-366.69,0.00010672,2]
[352681615,1739239833037,-150.0,0.00010726,2]
[352681616,1739239833046,-150.0,0.00010739,2]
[352681617,1739239833056,-150.0,0.00010741,2]
[352681618,1739239833066,-150.0,0.00010748,2]
[352681620,1739239833075,-150.0,0.0001075,2]
[352681621,1739239833085,-150.0,0.00010751,2]
[352681622,1739239833095,-150.0,0.00010754,2]
[352681623,1739239833106,-1000.0,0.00010755,2]
[352681624,1739239833116,-150.0,0.00010756,2]
[352681625,1739239833128,-150.0,0.00010758,2]
[352681626,1739239833140,-150.0,0.00010759,2]
[352681628,1739239833150,-150.0,0.00010759,2]
[352681629,1739239833160,-150.0,0.0001076,2]
[352681630,1739239833171,-150.0,0.00010761,2]
[352681632,1739239833181,-150.0,0.00010767,2]
[352681633,1739239833190,-150.0,0.00010769,2]
[352681634,1739239833201,-285.85,0.00010772,2]
[352681635,1739239833211,-150.0,0.00010773,2]
[352681636,1739239833221,-150.0,0.00010774,2]
[352681637,1739239833231,-150.0,0.00010777,2]
[352681638,1739239833240,-1146.35293049,0.0001078,2]
[352681639,1739239833250,-1186.49550729,0.0001078,2]
[352681640,1739239833260,-150.0,0.0001078,2]
[352681641,1739239833271,-150.0,0.0001078,2]
[352681642,1739239833280,-150.0,0.00010783,2]
[352681643,1739239833290,-150.0,0.00010785,2]
[352681644,1739239833299,-150.0,0.00010791,2]
[352681645,1739239833308,-150.0,0.00010792,2]
[352681646,1739239833317,-150.0,0.00010793,2]
[352681647,1739239833326,-150.0,0.00010794,2]
[352681648,1739239833336,-150.0,0.00010795,2]
[352681649,1739239833347,-150.0,0.00010799,2]
[352681650,1739239833357,-150.0,0.00010799,2]
[352681651,1739239833366,-259726.86051335,0.000108,2]
[352681652,1739239833376,-150.0,0.00010801,2]
[352681653,1739239833385,-3914.0,0.00010803,2]
[352681654,1739239833395,-150.772,0.00010803,2]
[352681655,1739239833404,-1008.0,0.00010803,2]
[352681656,1739239833413,-150.0,0.00010804,2]
[352681657,1739239833423,-150.0,0.00010804,2]
[352681658,1739239833432,-150.0,0.00010811,2]
[352681659,1739239833443,-150.0,0.00010815,2]
[352681660,1739239833452,-150.0,0.00010815,2]
[352681661,1739239833462,-150.0,0.00010816,2]
[352681662,1739239833471,-150.0,0.00010822,2]
[352681663,1739239833481,-150.0,0.00010828,2]
[352681664,1739239833491,-150.0,0.0001083,2]
[352681665,1739239833501,-150.0,0.00010831,2]
[352681666,1739239833511,-1000.0,0.00010832,2]
[352681667,1739239833520,-150.0,0.00010832,2]
[352681668,1739239833530,-150.0,0.00010833,2]
[352681669,1739239833540,-150.0,0.00010837,2]
[352681670,1739239833550,-150.0,0.00010845,2]
[352681671,1739239833559,-150.0,0.00010846,2]
[352681672,1739239833568,-150.0,0.00010848,2]
[352681673,1739239833579,-150.0,0.00010848,2]
[352681674,1739239833589,-150.0,0.00010853,2]
[352681675,1739239833599,-150.0,0.00010853,2]
[352681676,1739239833610,-150.0,0.00010854,2]
[352681677,1739239833620,-150.0,0.00010855,2]
[352681678,1739239833631,-484.0,0.00010856,2]
[352681679,1739239833641,-150.0,0.00010864,2]
[352681680,1739239833650,-150.0,0.00010869,2]
[352681681,1739239833660,-150.0,0.0001087,2]
[352681682,1739239833670,-150.0,0.00010871,2]
[352681683,1739239833680,-150.0,0.00010873,2]
[352681684,1739239833689,-150.0,0.00010875,2]
[352681685,1739239833699,-150.0,0.00010877,2]
[352681686,1739239833708,-150.0,0.00010877,2]
[352681687,1739239833718,-150.0,0.0001088,2]
[352681688,1739239833727,-150.0,0.0001088,2]
[352681689,1739239833738,-150.0,0.00010885,2]
[352681690,1739239833747,-150.0,0.00010896,2]
[352681691,1739239833757,-150.0,0.00010896,2]
[352681692,1739239833766,-150.0,0.00010899,2]
[352681693,1739239833776,-166.69014338,0.000109,2]
[352681694,1739239833785,-186.70517147,0.000109,2]
[352681695,1739239833796,-414.61826631,0.000109,2]
[352681696,1739239833806,-414.61826622,0.000109,2]
[352681697,1739239833815,-414.61826622,0.000109,2]
[352681698,1739239833825,-414.61826622,0.000109,2]
[352681699,1739239833835,-414.61826622,0.000109,2]
[352681700,1739239833845,-414.61826622,0.000109,2]
[352681701,1739239833855,-414.61826622,0.000109,2]
[352681702,1739239833865,-487.65533418,0.000109,2]
[352681703,1739239833875,-150.0,0.00010901,2]
[352681704,1739239833886,-150.0,0.00010903,2]
[352681705,1739239833897,-150.0,0.00010904,2]
[352681706,1739239833906,-150.0,0.00010906,2]
[352681707,1739239833916,-150.0,0.00010908,2]
[352681708,1739239833925,-150.0,0.00010908,2]
[352681709,1739239833936,-1000.0,0.00010909,2]
[352681710,1739239833946,-150.0,0.00010909,2]
[352681711,1739239833957,-414.61826622,0.0001091,2]
[352681712,1739239833966,-205.34,0.00010917,2]
[352681713,1739239833976,-150.0,0.0001092,2]
[352681714,1739239833986,-150.0,0.00010922,2]
[352681715,1739239833996,-150.0,0.00010923,2]
[352681716,1739239834006,-150.0,0.00010925,2]
[352681717,1739239834016,-150.0,0.00010928,2]
[352681718,1739239834026,-150.0,0.00010928,2]
[352681719,1739239834036,-150.0,0.00010931,2]
[352681720,1739239834047,-150.0,0.00010933,2]
[352681721,1739239834057,-150.0,0.00010936,2]
[352681722,1739239834068,-150.0,0.0001094,2]
[352681723,1739239834077,-150.0,0.0001094,2]
[352681724,1739239834087,-414.61826622,0.0001094,2]
[352681725,1739239834097,-150.0,0.00010946,2]
[352681726,1739239834107,-150.0,0.00010947,2]
[352681727,1739239834117,-150.0,0.00010949,2]
[352681728,1739239834129,-150.0,0.00010954,2]
[352681729,1739239834141,-498.79371751,0.00010958,2]
[352681730,1739239834151,-500.68083152,0.00010958,2]
[352681731,1739239834161,-500.0,0.00010958,2]
[352681732,1739239834170,-500.0,0.00010958,2]
[352681733,1739239834182,-500.0,0.00010958,2]
[352681734,1739239834192,-500.39282976,0.00010958,2]
[352681735,1739239834202,-504.30379775,0.00010958,2]
[352681736,1739239834214,-502.20713377,0.00010958,2]
[352681737,1739239834223,-500.0,0.00010958,2]
[352681738,1739239834233,-501.70563409,0.00010958,2]
[352681739,1739239834244,-500.0,0.00010958,2]
[352681740,1739239834253,-500.0,0.00010958,2]
[352681741,1739239834263,-502.26173019,0.00010958,2]
[352681742,1739239834273,-503.30489915,0.00010958,2]
[352681743,1739239834283,-501.85906886,0.00010958,2]
[352681744,1739239834293,-508.07513715,0.00010958,2]
[352681745,1739239834303,-503.37940467,0.00010958,2]
[352681746,1739239834313,-506.15915655,0.00010958,2]
[352681747,1739239834323,-501.51491166,0.00010958,2]
[352681748,1739239834333,-501.33807741,0.00010958,2]
[352681749,1739239834344,-503.59732162,0.00010958,2]
[352681750,1739239834354,-505.21079295,0.00010958,2]
[352681751,1739239834365,-500.0,0.00010958,2]
[352681752,1739239834375,-501.69605063,0.00010958,2]
[352681753,1739239834385,-501.7795311,0.00010958,2]
[352681754,1739239834395,-503.260425,0.00010958,2]
[352681755,1739239834405,-240.66218836,0.00010958,2]
[352681756,1739239834415,-520.25463519,0.00010958,2]
[352681757,1739239834424,-502.58309843,0.00010958,2]
[352681758,1739239834433,-502.18480742,0.00010958,2]
[352681759,1739239834443,-504.09915698,0.00010958,2]
[352681760,1739239834453,-507.27964768,0.00010958,2]
[352681761,1739239834462,-504.43513113,0.00010958,2]
[352681762,1739239834472,-501.4297141,0.00010958,2]
[352681763,1739239834481,-501.84221218,0.00010958,2]
[352681764,1739239834490,-502.61858352,0.00010958,2]
[352681765,1739239834499,-243.99891439,0.00010958,2]
[352681766,1739239834509,-505.01307078,0.00010958,2]
[352681767,1739239834518,-500.0,0.00010958,2]
[352681768,1739239834527,-501.52479943,0.00010958,2]
[352681769,1739239834537,-501.92802684,0.00010958,2]
[352681770,1739239834546,-505.14193997,0.00010958,2]
[352681771,1739239834556,-500.64390132,0.00010958,2]
[352681772,1739239834565,-502.84167826,0.00010958,2]
[352681773,1739239834575,-505.66132956,0.00010958,2]
[352681774,1739239834584,-162.95680503,0.00010958,2]
[352681775,1739239834594,-501.47523249,0.00010958,2]
[352681776,1739239834604,-504.73710173,0.00010958,2]
[352681777,1739239834613,-501.9902372,0.00010958,2]
[352681778,1739239834623,-504.35018591,0.00010958,2]
[352681779,1739239834632,-500.0,0.00010958,2]
[352681780,1739239834642,-503.69941402,0.00010958,2]
[352681781,1739239834651,-500.89736665,0.00010958,2]
[352681782,1739239834661,-505.2771373,0.00010958,2]
[352681783,1739239834671,-503.84984229,0.00010958,2]
[352681784,1739239834680,-505.91875965,0.00010958,2]